[Event "*** Titled Tuesday Blitz"]
[Site "Chess.com"]
[Date "2020.05.05"]
[Round "9"]
[White "Munkhzul_Turmunkh"]
[Black "cukin84"]
[Result "1-0"]
[WhiteElo "2485"]
[BlackElo "2081"]
[TimeControl "180+1"]
[EndTime "11:49:48 PDT"]
[Termination "Munkhzul_Turmunkh won on time"]

1. e4 {[%clk 0:02:56.6]} 1... c6 {[%clk 0:02:58.4]} 2. d4 {[%clk 0:02:56.2]}
2... d5 {[%clk 0:02:58.1]} 3. e5 {[%clk 0:02:56.3]} 3... c5 {[%clk 0:02:58]} 4.
c3 {[%clk 0:02:55.8]} 4... Nc6 {[%clk 0:02:57.3]} 5. Nf3 {[%clk 0:02:55.6]} 5...
Bg4 {[%clk 0:02:56.4]} 6. Be2 {[%clk 0:02:55.5]} 6... e6 {[%clk 0:02:56.2]} 7.
O-O {[%clk 0:02:55.4]} 7... Bxf3 {[%clk 0:02:55.4]} 8. Bxf3 {[%clk 0:02:55.2]}
8... cxd4 {[%clk 0:02:55.6]} 9. cxd4 {[%clk 0:02:55.2]} 9... Qb6 {[%clk
0:02:55.6]} 10. Be3 {[%clk 0:02:31.5]} 10... Qxb2 {[%clk 0:02:54.3]} 11. Nd2
{[%clk 0:02:31.3]} 11... Bb4 {[%clk 0:02:52.6]} 12. Rb1 {[%clk 0:02:29]} 12...
Qa3 {[%clk 0:02:52.1]} 13. Nb3 {[%clk 0:02:22.8]} 13... Nge7 {[%clk 0:02:40.4]}
14. Qc2 {[%clk 0:02:06.9]} 14... O-O {[%clk 0:02:23.2]} 15. Rfc1 {[%clk
0:01:44.2]} 15... Nf5 {[%clk 0:02:19]} 16. Be2 {[%clk 0:01:27.1]} 16... Rac8
{[%clk 0:02:10.7]} 17. Bd3 {[%clk 0:01:08.6]} 17... Nce7 {[%clk 0:02:05.5]} 18.
Qe2 {[%clk 0:01:05.1]} 18... Nxe3 {[%clk 0:02:03.9]} 19. fxe3 {[%clk 0:00:59.3]}
19... Ng6 {[%clk 0:01:48.5]} 20. g3 {[%clk 0:00:45.5]} 20... Qa4 {[%clk
0:01:42.8]} 21. h4 {[%clk 0:00:44.8]} 21... Ba3 {[%clk 0:01:36.5]} 22. Bb5
{[%clk 0:00:34.4]} 22... Qb4 {[%clk 0:01:23.3]} 23. Nc5 {[%clk 0:00:30.2]} 23...
Qa5 {[%clk 0:01:02.6]} 24. Nb3 {[%clk 0:00:26.1]} 24... Qb6 {[%clk 0:00:53.5]}
25. Rf1 {[%clk 0:00:18.2]} 25... a6 {[%clk 0:00:51.5]} 26. Bd3 {[%clk
0:00:17.4]} 26... Qd8 {[%clk 0:00:41.4]} 27. h5 {[%clk 0:00:16.7]} 27... Ne7
{[%clk 0:00:38.4]} 28. h6 {[%clk 0:00:16.6]} 28... g6 {[%clk 0:00:37.2]} 29. g4
{[%clk 0:00:16.3]} 29... Nc6 {[%clk 0:00:33.1]} 30. Nd2 {[%clk 0:00:15.7]} 30...
Qh4 {[%clk 0:00:31.7]} 31. Rxb7 {[%clk 0:00:12.1]} 31... Nb4 {[%clk 0:00:28.2]}
32. Bb1 {[%clk 0:00:10.9]} 32... Qxh6 {[%clk 0:00:25.5]} 33. Nf3 {[%clk
0:00:10.7]} 33... Rc1 {[%clk 0:00:18.3]} 34. Rxc1 {[%clk 0:00:09.4]} 34... Bxc1
{[%clk 0:00:18.2]} 35. Rxb4 {[%clk 0:00:09]} 35... Bxe3+ {[%clk 0:00:18.3]} 36.
Kg2 {[%clk 0:00:08.9]} 36... Bf4 {[%clk 0:00:18.7]} 37. g5 {[%clk 0:00:06.6]}
37... Qh5 {[%clk 0:00:17.9]} 38. Rb7 {[%clk 0:00:05.6]} 38... Qg4+ {[%clk
0:00:17.6]} 39. Kf1 {[%clk 0:00:05.8]} 39... Qh3+ {[%clk 0:00:17.8]} 40. Qg2
{[%clk 0:00:05.3]} 40... Qh5 {[%clk 0:00:17.6]} 41. Bd3 {[%clk 0:00:04.4]} 41...
Rc8 {[%clk 0:00:17]} 42. Rb1 {[%clk 0:00:01.9]} 42... h6 {[%clk 0:00:16.2]} 43.
Bxa6 {[%clk 0:00:02.1]} 43... Rd8 {[%clk 0:00:13.2]} 44. Be2 {[%clk 0:00:02.1]}
44... hxg5 {[%clk 0:00:12.8]} 45. Ng1 {[%clk 0:00:02.2]} 45... Qh4 {[%clk
0:00:12.4]} 46. Nh3 {[%clk 0:00:02.4]} 46... Rc8 {[%clk 0:00:10.9]} 47. Nxf4
{[%clk 0:00:01.7]} 47... Qxf4+ {[%clk 0:00:10.1]} 48. Qf2 {[%clk 0:00:02.2]}
48... Rc1+ {[%clk 0:00:09.2]} 49. Rxc1 {[%clk 0:00:02.3]} 49... Qxc1+ {[%clk
0:00:09.2]} 50. Qe1 {[%clk 0:00:02.7]} 50... Qf4+ {[%clk 0:00:08.7]} 51. Qf2
{[%clk 0:00:03]} 51... Qc1+ {[%clk 0:00:08.8]} 52. Kg2 {[%clk 0:00:03.4]} 52...
Qc2 {[%clk 0:00:07.8]} 53. Bf3 {[%clk 0:00:03.5]} 53... Qf5 {[%clk 0:00:06.6]}
54. a4 {[%clk 0:00:03]} 54... g4 {[%clk 0:00:06.6]} 55. Be2 {[%clk 0:00:02.9]}
55... Qe4+ {[%clk 0:00:06.8]} 56. Kg3 {[%clk 0:00:03.2]} 56... Kg7 {[%clk
0:00:06.7]} 57. a5 {[%clk 0:00:03.1]} 57... g5 {[%clk 0:00:05.2]} 58. a6 {[%clk
0:00:02.7]} 58... Qc2 {[%clk 0:00:05.1]} 59. Bxg4 {[%clk 0:00:02.2]} 59... Qb3+
{[%clk 0:00:04.3]} 60. Qf3 {[%clk 0:00:01.8]} 60... Qa2 {[%clk 0:00:04]} 61. Bh5
{[%clk 0:00:01.6]} 61... f5 {[%clk 0:00:02.1]} 62. exf6+ {[%clk 0:00:01.1]}
62... Kf8 {[%clk 0:00:02.3]} 63. f7 {[%clk 0:00:02]} 63... Qxa6 {[%clk
0:00:01.7]} 64. Bg4 {[%clk 0:00:02.2]} 64... Qd6+ {[%clk 0:00:01.5]} 65. Kh3
{[%clk 0:00:01.9]} 65... e5 {[%clk 0:00:01.9]} 66. dxe5 {[%clk 0:00:01.9]} 66...
Qh6+ {[%clk 0:00:02.1]} 67. Kg2 {[%clk 0:00:02.3]} 67... Qg7 {[%clk 0:00:02.3]}
68. e6 {[%clk 0:00:02.4]} 68... Qe5 {[%clk 0:00:02.3]} 69. Qg3 {[%clk
0:00:01.7]} 69... Qe3 {[%clk 0:00:01.8]} 70. Qxe3 {[%clk 0:00:01.3]} 1-0

[Event "*** Titled Tuesday Blitz"]
[Site "Chess.com"]
[Date "2020.05.05"]
[Round "9"]
[White "dennisodessa"]
[Black "Fh2411"]
[Result "1/2-1/2"]
[WhiteElo "2312"]
[BlackElo "2453"]
[TimeControl "180+1"]
[EndTime "11:49:50 PDT"]
[Termination "Game drawn by repetition"]

1. d4 {[%clk 0:03:00.9]} 1... d5 {[%clk 0:02:58.9]} 2. c4 {[%clk 0:03:00.4]}
2... c6 {[%clk 0:02:59.8]} 3. Nf3 {[%clk 0:02:58.8]} 3... Nf6 {[%clk 0:02:56.8]}
4. Nbd2 {[%clk 0:02:59.1]} 4... Bg4 {[%clk 0:02:51.3]} 5. Ne5 {[%clk 0:02:58.4]}
5... Bf5 {[%clk 0:02:45.5]} 6. cxd5 {[%clk 0:02:55.7]} 6... cxd5 {[%clk
0:02:44.5]} 7. e4 {[%clk 0:02:56.5]} 7... dxe4 {[%clk 0:02:39.8]} 8. Qb3 {[%clk
0:02:55.9]} 8... Be6 {[%clk 0:02:20.8]} 9. Qxb7 {[%clk 0:02:39.1]} 9... Nbd7
{[%clk 0:02:08]} 10. Nxe4 {[%clk 0:02:22.5]} 10... Nxe4 {[%clk 0:02:03.3]} 11.
Qxe4 {[%clk 0:02:23.1]} 11... Nxe5 {[%clk 0:01:54]} 12. Qxe5 {[%clk 0:02:09.7]}
12... a6 {[%clk 0:01:47.3]} 13. Be2 {[%clk 0:01:59.7]} 13... Bd5 {[%clk
0:01:47]} 14. O-O {[%clk 0:01:53.5]} 14... e6 {[%clk 0:01:47]} 15. Bf4 {[%clk
0:01:29.1]} 15... f6 {[%clk 0:01:41.2]} 16. Qe3 {[%clk 0:01:25.1]} 16... Bd6
{[%clk 0:01:34.7]} 17. Bf3 {[%clk 0:01:16.6]} 17... Bxf4 {[%clk 0:01:31.9]} 18.
Qxf4 {[%clk 0:01:16.9]} 18... O-O {[%clk 0:01:27.6]} 19. Rad1 {[%clk 0:00:57.4]}
19... Ra7 {[%clk 0:01:17.5]} 20. b3 {[%clk 0:00:55]} 20... a5 {[%clk 0:01:11.4]}
21. Rfe1 {[%clk 0:00:54.7]} 21... Qd7 {[%clk 0:00:58.3]} 22. Bxd5 {[%clk
0:00:49.4]} 22... exd5 {[%clk 0:00:41.8]} 23. Rc1 {[%clk 0:00:34.1]} 23... Rd8
{[%clk 0:00:32.8]} 24. h3 {[%clk 0:00:32.7]} 24... Qd6 {[%clk 0:00:28.1]} 25.
Qxd6 {[%clk 0:00:30]} 25... Rxd6 {[%clk 0:00:29]} 26. Rc5 {[%clk 0:00:30.7]}
26... Kf7 {[%clk 0:00:27.5]} 27. Rec1 {[%clk 0:00:29.3]} 27... Rdd7 {[%clk
0:00:23]} 28. f3 {[%clk 0:00:26.7]} 28... Ke6 {[%clk 0:00:22.7]} 29. Kf2 {[%clk
0:00:26.3]} 29... h5 {[%clk 0:00:22.4]} 30. h4 {[%clk 0:00:24.6]} 30... Kf5
{[%clk 0:00:21.5]} 31. g3 {[%clk 0:00:20.1]} 31... Ke6 {[%clk 0:00:17.1]} 32.
Rc6+ {[%clk 0:00:19.5]} 32... Kf7 {[%clk 0:00:17.2]} 33. R6c5 {[%clk 0:00:18.5]}
33... Kg6 {[%clk 0:00:17.5]} 34. Rb5 {[%clk 0:00:18.5]} 34... a4 {[%clk
0:00:15]} 35. b4 {[%clk 0:00:18]} 35... a3 {[%clk 0:00:15.6]} 36. Rcc5 {[%clk
0:00:16.4]} 36... Ra4 {[%clk 0:00:12.2]} 37. Ke3 {[%clk 0:00:16.1]} 37... Re7+
{[%clk 0:00:11.5]} 38. Kd2 {[%clk 0:00:16.4]} 38... Rd7 {[%clk 0:00:07.7]} 39.
Kc3 {[%clk 0:00:15.9]} 39... Re7 {[%clk 0:00:08.1]} 40. Kd2 {[%clk 0:00:15.8]}
40... Rd7 {[%clk 0:00:07.9]} 41. Rb6 {[%clk 0:00:13.1]} 41... Re7 {[%clk
0:00:06]} 42. Rxd5 {[%clk 0:00:12.3]} 42... Rc7 {[%clk 0:00:06.3]} 43. Rc5
{[%clk 0:00:12.1]} 43... Rd7 {[%clk 0:00:05.9]} 44. d5 {[%clk 0:00:12.5]} 44...
Ra8 {[%clk 0:00:05.2]} 45. d6 {[%clk 0:00:12.9]} 45... Rad8 {[%clk 0:00:05.3]}
46. Rd5 {[%clk 0:00:13.3]} 46... Rc8 {[%clk 0:00:05.3]} 47. Rd3 {[%clk
0:00:12.6]} 47... Rc4 {[%clk 0:00:05.2]} 48. Rb8 {[%clk 0:00:09.8]} 48... Kf5
{[%clk 0:00:04.1]} 49. Ra8 {[%clk 0:00:07.5]} 49... g5 {[%clk 0:00:04.2]} 50.
Raxa3 {[%clk 0:00:07.2]} 50... gxh4 {[%clk 0:00:04.1]} 51. gxh4 {[%clk
0:00:07.8]} 51... Rxh4 {[%clk 0:00:04.1]} 52. Rac3 {[%clk 0:00:06.9]} 52... Rh2+
{[%clk 0:00:03.9]} 53. Ke3 {[%clk 0:00:06.2]} 53... Rxa2 {[%clk 0:00:04.8]} 54.
Rc7 {[%clk 0:00:06.4]} 54... Ke6 {[%clk 0:00:04.5]} 55. Rxd7 {[%clk 0:00:06.2]}
55... Kxd7 {[%clk 0:00:05.4]} 56. Kf4 {[%clk 0:00:06.3]} 56... Rb2 {[%clk
0:00:05.3]} 57. Rd4 {[%clk 0:00:06.4]} 57... h4 {[%clk 0:00:03.2]} 58. Kg4
{[%clk 0:00:06.4]} 58... Rf2 {[%clk 0:00:03.3]} 59. f4 {[%clk 0:00:06.4]} 59...
Rh2 {[%clk 0:00:02.3]} 60. b5 {[%clk 0:00:06.1]} 60... Rb2 {[%clk 0:00:02.3]}
61. Rd5 {[%clk 0:00:05.5]} 61... Rb4 {[%clk 0:00:01.5]} 62. Kf3 {[%clk
0:00:03.1]} 62... h3 {[%clk 0:00:02.4]} 63. Kg3 {[%clk 0:00:03.2]} 63... Rb3+
{[%clk 0:00:03.3]} 64. Kh4 {[%clk 0:00:03.2]} 64... h2 {[%clk 0:00:02.9]} 65.
Rd1 {[%clk 0:00:03.5]} 65... Rxb5 {[%clk 0:00:03.3]} 66. Kg3 {[%clk 0:00:02.9]}
66... Rb6 {[%clk 0:00:03.4]} 67. Kxh2 {[%clk 0:00:02.4]} 67... Rxd6 {[%clk
0:00:04.3]} 68. Re1 {[%clk 0:00:02.4]} 68... Rd3 {[%clk 0:00:04]} 69. Kg2 {[%clk
0:00:02.5]} 69... Kd6 {[%clk 0:00:04.5]} 70. Kf2 {[%clk 0:00:03]} 70... Kd5
{[%clk 0:00:05]} 71. Re3 {[%clk 0:00:03.4]} 71... Rxe3 {[%clk 0:00:04.7]} 72.
Kxe3 {[%clk 0:00:03.7]} 72... f5 {[%clk 0:00:04.8]} 73. Kd3 {[%clk 0:00:04]}
73... Kc5 {[%clk 0:00:05.7]} 74. Kc3 {[%clk 0:00:04.3]} 74... Kd5 {[%clk
0:00:06.3]} 75. Kd3 {[%clk 0:00:04.8]} 75... Kc5 {[%clk 0:00:06.9]} 76. Kc3
{[%clk 0:00:05.2]} 76... Kd5 {[%clk 0:00:07.4]} 77. Kd3 {[%clk 0:00:05.8]}
1/2-1/2

[Event "*** Titled Tuesday Blitz"]
[Site "Chess.com"]
[Date "2020.05.05"]
[Round "9"]
[White "mariofs"]
[Black "Azoulas1"]
[Result "1-0"]
[WhiteElo "2165"]
[BlackElo "1910"]
[TimeControl "180+1"]
[EndTime "11:49:51 PDT"]
[Termination "mariofs won on time"]

1. d4 {[%clk 0:03:00.9]} 1... Nf6 {[%clk 0:02:56.5]} 2. c4 {[%clk 0:02:59.9]}
2... e6 {[%clk 0:02:55.9]} 3. g3 {[%clk 0:02:59.6]} 3... c5 {[%clk 0:02:44.9]}
4. Nf3 {[%clk 0:02:59]} 4... cxd4 {[%clk 0:02:42.7]} 5. Nxd4 {[%clk 0:02:59.9]}
5... Nc6 {[%clk 0:02:42.8]} 6. Bg2 {[%clk 0:02:59.6]} 6... Be7 {[%clk
0:02:41.8]} 7. O-O {[%clk 0:02:59.2]} 7... a6 {[%clk 0:02:40]} 8. Nc3 {[%clk
0:02:59.6]} 8... Qc7 {[%clk 0:02:37.3]} 9. b3 {[%clk 0:02:49.4]} 9... O-O {[%clk
0:02:36.1]} 10. e4 {[%clk 0:02:47.2]} 10... b6 {[%clk 0:02:33.5]} 11. Bb2 {[%clk
0:02:31.3]} 11... Bb7 {[%clk 0:02:31.2]} 12. Nc2 {[%clk 0:02:23.7]} 12... d6
{[%clk 0:02:28.8]} 13. Qd2 {[%clk 0:02:22]} 13... Rad8 {[%clk 0:02:27.8]} 14.
Rad1 {[%clk 0:02:22.1]} 14... Qb8 {[%clk 0:02:26]} 15. Ne3 {[%clk 0:02:18.8]}
15... Rd7 {[%clk 0:02:20.5]} 16. Qe2 {[%clk 0:02:18.4]} 16... Re8 {[%clk
0:02:16.2]} 17. Rd2 {[%clk 0:02:18.2]} 17... Bf8 {[%clk 0:02:15.4]} 18. Rfd1
{[%clk 0:02:18.1]} 18... Red8 {[%clk 0:02:13.7]} 19. Ba3 {[%clk 0:02:14.7]}
19... Qc7 {[%clk 0:02:08.6]} 20. h4 {[%clk 0:02:06.9]} 20... Be7 {[%clk
0:02:06.2]} 21. Rc1 {[%clk 0:01:59.1]} 21... Ne5 {[%clk 0:02:04.9]} 22. Rcd1
{[%clk 0:01:45.8]} 22... Qb8 {[%clk 0:02:03.1]} 23. f4 {[%clk 0:01:45.3]} 23...
Nc6 {[%clk 0:02:00.6]} 24. f5 {[%clk 0:01:44.1]} 24... e5 {[%clk 0:01:50]} 25.
Nc2 {[%clk 0:01:39]} 25... Qa8 {[%clk 0:01:40.8]} 26. g4 {[%clk 0:01:36.4]}
26... Ne8 {[%clk 0:01:36.5]} 27. g5 {[%clk 0:01:35.4]} 27... f6 {[%clk
0:01:29.1]} 28. Qg4 {[%clk 0:01:30.9]} 28... Qa7 {[%clk 0:01:12.9]} 29. Nd5
{[%clk 0:01:29.3]} 29... b5+ {[%clk 0:01:09.8]} 30. Kh1 {[%clk 0:01:18.3]} 30...
bxc4 {[%clk 0:01:09.1]} 31. bxc4 {[%clk 0:01:19.2]} 31... Na5 {[%clk 0:01:05.7]}
32. Nxe7+ {[%clk 0:01:07.6]} 32... Rxe7 {[%clk 0:01:04.1]} 33. c5 {[%clk
0:01:08.1]} 33... Nc4 {[%clk 0:01:01]} 34. cxd6 {[%clk 0:01:08.1]} 34... Red7
{[%clk 0:00:58.5]} 35. Rd3 {[%clk 0:00:51.9]} 35... Qf2 {[%clk 0:00:57]} 36. Nb4
{[%clk 0:00:18.7]} 36... Nxa3 {[%clk 0:00:53.8]} 37. Rxa3 {[%clk 0:00:19.6]}
37... Rxd6 {[%clk 0:00:53.3]} 38. Nd5 {[%clk 0:00:16.4]} 38... Bxd5 {[%clk
0:00:45.1]} 39. exd5 {[%clk 0:00:17.3]} 39... Qc5 {[%clk 0:00:40.1]} 40. Rg3
{[%clk 0:00:16.8]} 40... Qc7 {[%clk 0:00:32.4]} 41. Be4 {[%clk 0:00:14.1]} 41...
Kh8 {[%clk 0:00:30.4]} 42. h5 {[%clk 0:00:13.5]} 42... fxg5 {[%clk 0:00:27.3]}
43. Qxg5 {[%clk 0:00:14.4]} 43... Rh6 {[%clk 0:00:25.3]} 44. Kg2 {[%clk
0:00:13.4]} 44... Nf6 {[%clk 0:00:24.1]} 45. Kf3 {[%clk 0:00:12.8]} 45... Rxh5
{[%clk 0:00:22.5]} 46. Qxg7+ {[%clk 0:00:08.2]} 46... Qxg7 {[%clk 0:00:21.3]}
47. Rxg7 {[%clk 0:00:09.1]} 47... Kxg7 {[%clk 0:00:21]} 48. Rg1+ {[%clk
0:00:10]} 48... Kf7 {[%clk 0:00:20.5]} 49. Rg3 {[%clk 0:00:09.8]} 49... Rg8
{[%clk 0:00:20]} 50. Rxg8 {[%clk 0:00:08.8]} 50... Nxg8 {[%clk 0:00:19.3]} 51.
d6 {[%clk 0:00:09.4]} 51... Ke8 {[%clk 0:00:19.1]} 52. Bd5 {[%clk 0:00:09.6]}
52... Nf6 {[%clk 0:00:18.2]} 53. Be6 {[%clk 0:00:10]} 53... Kd8 {[%clk 0:00:17]}
54. Ke3 {[%clk 0:00:09.7]} 54... e4 {[%clk 0:00:16.5]} 55. Kf4 {[%clk
0:00:09.7]} 55... Rh3 {[%clk 0:00:15.3]} 56. Ke5 {[%clk 0:00:10]} 56... Nd7+
{[%clk 0:00:14.5]} 57. Kd5 {[%clk 0:00:08.9]} 57... Rd3+ {[%clk 0:00:13]} 58.
Kc6 {[%clk 0:00:09.8]} 58... Rc3+ {[%clk 0:00:11.9]} 59. Kd5 {[%clk 0:00:10.3]}
59... Nf6+ {[%clk 0:00:11.2]} 60. Ke5 {[%clk 0:00:10.4]} 60... Nd7+ {[%clk
0:00:10.6]} 61. Kxe4 {[%clk 0:00:10.6]} 61... h5 {[%clk 0:00:07.9]} 62. Kf4
{[%clk 0:00:09.2]} 62... h4 {[%clk 0:00:07]} 63. Kg4 {[%clk 0:00:09.4]} 63... h3
{[%clk 0:00:06.8]} 64. Bd5 {[%clk 0:00:07.9]} 64... h2 {[%clk 0:00:05.6]} 65.
Kg5 {[%clk 0:00:08.1]} 65... Ne5 {[%clk 0:00:05.2]} 66. f6 {[%clk 0:00:07.6]}
66... Kd7 {[%clk 0:00:04.8]} 67. Kf5 {[%clk 0:00:04.7]} 67... Nf7 {[%clk
0:00:04.3]} 68. Be6+ {[%clk 0:00:02.2]} 68... Kxd6 {[%clk 0:00:04]} 69. Bxf7
{[%clk 0:00:02.9]} 69... h1=Q {[%clk 0:00:01.7]} 70. Bh5 {[%clk 0:00:03.6]}
70... Qxh5+ {[%clk 0:00:01.4]} 71. Kf4 {[%clk 0:00:03.6]} 1-0

[Event "*** Titled Tuesday Blitz"]
[Site "Chess.com"]
[Date "2020.05.05"]
[Round "9"]
[White "FedaMaster"]
[Black "ozates"]
[Result "1-0"]
[WhiteElo "2525"]
[BlackElo "2387"]
[TimeControl "180+1"]
[EndTime "11:50:02 PDT"]
[Termination "FedaMaster won by checkmate"]

1. e4 {[%clk 0:02:53.3]} 1... c5 {[%clk 0:02:58.4]} 2. Nf3 {[%clk 0:02:49.1]}
2... Nc6 {[%clk 0:02:58.4]} 3. d4 {[%clk 0:02:48.8]} 3... cxd4 {[%clk
0:02:59.3]} 4. Nxd4 {[%clk 0:02:46.8]} 4... e5 {[%clk 0:02:59.5]} 5. Nb5 {[%clk
0:02:44.9]} 5... d6 {[%clk 0:02:59.7]} 6. c4 {[%clk 0:02:45]} 6... Be7 {[%clk
0:02:59.4]} 7. N1c3 {[%clk 0:02:43.8]} 7... a6 {[%clk 0:02:59.7]} 8. Na3 {[%clk
0:02:43.8]} 8... f5 {[%clk 0:03:00.6]} 9. exf5 {[%clk 0:02:41.7]} 9... Bxf5
{[%clk 0:03:01.5]} 10. Bd3 {[%clk 0:02:42.3]} 10... Be6 {[%clk 0:03:02.1]} 11.
O-O {[%clk 0:02:39.9]} 11... Nf6 {[%clk 0:03:02.1]} 12. Nc2 {[%clk 0:02:37.2]}
12... O-O {[%clk 0:03:02.1]} 13. b3 {[%clk 0:02:36.5]} 13... Qd7 {[%clk
0:02:59.9]} 14. Ne3 {[%clk 0:02:13.4]} 14... Rae8 {[%clk 0:02:59.1]} 15. Bb2
{[%clk 0:02:03.3]} 15... Bd8 {[%clk 0:02:45.2]} 16. Ne4 {[%clk 0:01:59.3]} 16...
Kh8 {[%clk 0:02:30.8]} 17. Bc2 {[%clk 0:01:51.8]} 17... Be7 {[%clk 0:01:42.2]}
18. Ng5 {[%clk 0:01:50.8]} 18... Bg8 {[%clk 0:01:38.2]} 19. Bf5 {[%clk
0:01:48.5]} 19... Qd8 {[%clk 0:01:35.1]} 20. Ne6 {[%clk 0:01:43.4]} 20... Bxe6
{[%clk 0:01:34.8]} 21. Bxe6 {[%clk 0:01:44.3]} 21... Nd7 {[%clk 0:01:26.8]} 22.
Bg4 {[%clk 0:01:34.1]} 22... Nc5 {[%clk 0:01:19.5]} 23. Bh5 {[%clk 0:01:34.1]}
23... g6 {[%clk 0:01:18]} 24. Bf3 {[%clk 0:01:31.9]} 24... Bf6 {[%clk
0:01:14.4]} 25. Bd5 {[%clk 0:01:19.4]} 25... Nd4 {[%clk 0:01:10.8]} 26. Nc2
{[%clk 0:01:11.9]} 26... Nce6 {[%clk 0:01:04.6]} 27. Bxe6 {[%clk 0:01:02.6]}
27... Nxe6 {[%clk 0:01:02.1]} 28. Qd5 {[%clk 0:01:00.6]} 28... Nf4 {[%clk
0:00:59.7]} 29. Qxb7 {[%clk 0:00:55]} 29... Bg7 {[%clk 0:00:59.4]} 30. Rad1
{[%clk 0:00:46]} 30... Qg5 {[%clk 0:00:50.3]} 31. Ne3 {[%clk 0:00:29.1]} 31...
Nh3+ {[%clk 0:00:36.4]} 32. Kh1 {[%clk 0:00:27.9]} 32... Nxf2+ {[%clk
0:00:36.8]} 33. Rxf2 {[%clk 0:00:28.8]} 33... Rxf2 {[%clk 0:00:37]} 34. Qc6
{[%clk 0:00:10.6]} 34... Ref8 {[%clk 0:00:32.8]} 35. Bc1 {[%clk 0:00:10.4]}
35... Qf4 {[%clk 0:00:22.4]} 36. Rg1 {[%clk 0:00:09.3]} 36... Qd4 {[%clk
0:00:17.2]} 37. Qd5 {[%clk 0:00:06.8]} 37... Qxd5 {[%clk 0:00:16.3]} 38. Nxd5
{[%clk 0:00:07.7]} 38... Rf1 {[%clk 0:00:16.3]} 39. Ba3 {[%clk 0:00:07.2]} 39...
Rxg1+ {[%clk 0:00:13]} 40. Kxg1 {[%clk 0:00:08.1]} 40... e4 {[%clk 0:00:12.2]}
41. g4 {[%clk 0:00:07.4]} 41... Bd4+ {[%clk 0:00:12.2]} 42. Kg2 {[%clk
0:00:07.9]} 42... Be5 {[%clk 0:00:13.1]} 43. Ne3 {[%clk 0:00:06.6]} 43... Bd4
{[%clk 0:00:12.9]} 44. Nc2 {[%clk 0:00:06.4]} 44... Be5 {[%clk 0:00:12.6]} 45.
Bc1 {[%clk 0:00:05.6]} 45... Kg7 {[%clk 0:00:12.8]} 46. Be3 {[%clk 0:00:06.1]}
46... h6 {[%clk 0:00:13.1]} 47. Nb4 {[%clk 0:00:06.4]} 47... Bf4 {[%clk
0:00:13.2]} 48. Bd4+ {[%clk 0:00:06.2]} 48... Be5 {[%clk 0:00:12.9]} 49. Be3
{[%clk 0:00:06.8]} 49... g5 {[%clk 0:00:12.5]} 50. Nd5 {[%clk 0:00:06.9]} 50...
Kg6 {[%clk 0:00:11.3]} 51. a4 {[%clk 0:00:06.4]} 51... h5 {[%clk 0:00:11.5]} 52.
h3 {[%clk 0:00:06.3]} 52... hxg4 {[%clk 0:00:11.4]} 53. hxg4 {[%clk 0:00:07.2]}
53... Rf3 {[%clk 0:00:11.8]} 54. b4 {[%clk 0:00:06.6]} 54... Rg3+ {[%clk
0:00:12]} 55. Kf2 {[%clk 0:00:06.7]} 55... Rxg4 {[%clk 0:00:12.9]} 56. b5 {[%clk
0:00:07]} 56... axb5 {[%clk 0:00:12.5]} 57. cxb5 {[%clk 0:00:07.5]} 57... Rh4
{[%clk 0:00:13.4]} 58. a5 {[%clk 0:00:07.4]} 58... Rh2+ {[%clk 0:00:13.3]} 59.
Kf1 {[%clk 0:00:08]} 59... Rb2 {[%clk 0:00:12.5]} 60. a6 {[%clk 0:00:07.2]}
60... Rxb5 {[%clk 0:00:12.1]} 61. a7 {[%clk 0:00:07.4]} 61... Ra5 {[%clk
0:00:12.6]} 62. Bb6 {[%clk 0:00:07.9]} 62... Ra1+ {[%clk 0:00:11.5]} 63. Ke2
{[%clk 0:00:08.4]} 63... Ra2+ {[%clk 0:00:11.2]} 64. Ke3 {[%clk 0:00:08.3]}
64... Kf5 {[%clk 0:00:11.6]} 65. Ne7+ {[%clk 0:00:08]} 65... Ke6 {[%clk
0:00:11.5]} 66. Nc6 {[%clk 0:00:08.2]} 66... d5 {[%clk 0:00:11.6]} 67. Na5
{[%clk 0:00:07.8]} 67... Ra3+ {[%clk 0:00:09.8]} 68. Kd2 {[%clk 0:00:07.8]}
68... Bc3+ {[%clk 0:00:08.9]} 69. Kc2 {[%clk 0:00:07.9]} 69... Bxa5 {[%clk
0:00:04.8]} 70. a8=Q {[%clk 0:00:08.4]} 70... Bb4 {[%clk 0:00:05.7]} 71. Qc8+
{[%clk 0:00:06.8]} 71... Ke5 {[%clk 0:00:06.6]} 72. Qh8+ {[%clk 0:00:05.9]}
72... Kf4 {[%clk 0:00:06.6]} 73. Qf6+ {[%clk 0:00:05.7]} 73... Kg4 {[%clk
0:00:06.5]} 74. Qe6+ {[%clk 0:00:06.1]} 74... Kf4 {[%clk 0:00:06.9]} 75. Bc7+
{[%clk 0:00:05.7]} 75... Ke3 {[%clk 0:00:06.6]} 76. Qb6+ {[%clk 0:00:05.6]}
76... Kf3 {[%clk 0:00:06.1]} 77. Qxb4 {[%clk 0:00:05.9]} 77... Rd3 {[%clk
0:00:06.8]} 78. Qf8+ {[%clk 0:00:05.3]} 78... Ke2 {[%clk 0:00:07]} 79. Bb6
{[%clk 0:00:04.5]} 79... e3 {[%clk 0:00:07]} 80. Qe7 {[%clk 0:00:02.8]} 80... d4
{[%clk 0:00:06.6]} 81. Qe4 {[%clk 0:00:02.4]} 81... Rd2+ {[%clk 0:00:06.8]} 82.
Kc1 {[%clk 0:00:02.9]} 82... d3 {[%clk 0:00:06.6]} 83. Qxe3+ {[%clk 0:00:02.9]}
83... Kf1 {[%clk 0:00:06.9]} 84. Kxd2 {[%clk 0:00:03.3]} 84... g4 {[%clk
0:00:07.8]} 85. Qf2# {[%clk 0:00:03.6]} 1-0